[Event "FISCA IM Round Robin 2022"]
[Site "Cap Aurora"]
[Date "2022.06.26"]
[Round "6.1"]
[White "Cosma, Ioan"]
[Black "Srinath, Rao S.V."]
[Result "1/2-1/2"]
[ECO "E97"]
[WhiteElo "2394"]
[BlackElo "2316"]
[Annotator "TA"]
[PlyCount "99"]
[EventDate "2022.06.22"]
[EventType "tourn"]
[EventCountry "ROU"]
[SourceTitle "playchess.com"]
[Source "ChessBase"]
[SourceQuality "1"]
[TimeControl "40/5400+30:900+30"]

{[%evp 20,99,27,27,27,27,27,28,27,17,23,14,22,13,12,18,12,11,14,7,35,33,36,34,31,37,120,119,114,106,126,119,120,101,174,115,233,107,249,249,249,249,249,249,233,0,0,0,0,0,0,-35,-40,-136,-8,-155,-145,-156,-168,-265,-272,-280,-304,-277,0,0,0,0,0,0,0,0,0,0,0,0,0,0,0,0,0,0]} 1. Nf3 {[%emt 0:00:49]} Nf6 {[%emt 0:00:05]} 2. c4 {[%emt 0:00:10]} g6 {[%emt 0:00:04]} 3. Nc3 {[%emt 0:00:08]} Bg7 {[%emt 0:00:06]} 4. e4 {[%emt 0:00:23]} d6 {[%emt 0:00:04]} 5. d4 {[%emt 0:00:12]} O-O {[%emt 0:00:06]} 6. Be2 {[%emt 0:00:09]} e5 {[%emt 0:00:05]} 7. O-O {[%emt 0:00:30]} Nc6 {[%emt 0:00:49]} 8. dxe5 {[%emt 0:00:22]} dxe5 {[%emt 0:04:26]} 9. Bg5 {[%emt 0:00:30]} Qxd1 {[%emt 0:04:34]} 10. Rfxd1 {[%emt 0:00:19]} Bg4 {[%emt 0:01:00] 10...Bg4 has become a bit dusty these days.} 11. h3 {[%emt 0:00:14]} Bxf3 {[%emt 0:00:30] E97: King's Indian: Classical Main Line (6...e5 7 0-0 Nc6): 8 Be3 and 8 d5 Ne7, not 9 Ne1.} 12. Bxf3 {[%emt 0:00:06]} Nd4 {[%emt 0:14:01]} 13. Nd5 {[%emt 0:01:10]} Nxd5 {[%emt 0:03:26] White has an edge.} 14. cxd5 {[%emt 0:00:08]} f5 {[%emt 0:00:04]} 15. Be3 {[%emt 0:21:02]} Rae8 {[%emt 0:23:41] [#]} 16. Bxd4 $146 {[%emt 0:05:21]} ({Predecessor:} 16. Kh1 Rf7 17. Rac1 Rd8 18. exf5 Nxf5 19. Bxa7 e4 20. Be2 Kh8 21. g4 Nd6 22. Be3 {½-½ (47) Muljadi,P (2166)-Bucsa,I (2237) ICCF email 2016}) 16... exd4 {[%emt 0:00:46]} 17. exf5 {[%emt 0:00:07]} Rxf5 {[%emt 0:01:45]} 18. Rac1 {[%emt 0:00:22]} Re7 {[%emt 0:03:14]} 19. Rc4 {[%emt 0:04:33]} h5 {[%emt 0:13:16]} 20. Kf1 {[%emt 0:03:30]} Kf8 {[%emt 0:04:23]} 21. Ra4 {[%emt 0:10:17]} a6 {[%emt 0:00:11]} 22. Rb4 {[%emt 0:00:12]} b6 {[%emt 0:00:21]} (22... b5 $14) 23. d6 $1 $16 {[%emt 0:00:37]} cxd6 {[%emt 0:03:36]} 24. Rxb6 {[%emt 0:00:07]} Rb5 {[%emt 0:02:45]} 25. Rxd6 {[%emt 0:06:20]} Rxb2 {[%emt 0:00:05]} 26. a4 {[%emt 0:00:46]} Rc7 {[%emt 0:04:03]} (26... Kf7 $16) 27. Re1 {[%emt 0:13:38]} ({White should try} 27. Rxa6 $18 Rcc2 28. Rxg6) 27... Rcc2 {[%emt 0:07:14]} (27... Rc8 $16 28. Be4 (28. Rxa6 d3 $16) 28... g5) 28. Kg1 {[%emt 0:05:27]} (28. Rd8+ $18 {and the rest is easy.} Kf7 29. Bd5+ Kf6 30. Rd6+ Kf5 31. Be4+ Ke5 32. Rxg6 (32. Bxc2+ Kxd6 33. Bxg6 Ra2 $14) 32... Rxf2+ 33. Kg1) 28... Rxf2 {[%emt 0:02:19]} (28... d3 $16) 29. Rd8+ $1 $18 {[%emt 0:02:14]} Kf7 {[%emt 0:00:05][%cal Od4d3]} 30. Rd7+ {[%emt 0:00:27]} Kf6 {[%emt 0:00:48]} 31. Bd5 {[%emt 0:05:50]} Rf5 {[%emt 0:07:11] [#]} 32. Re6+ {[%emt 0:04:15]} (32. h4 $1 $18 {[%csl Gd5][%cal Re1e6]} Rxd5 33. Rxd5) 32... Kg5 $11 {[%emt 0:00:04]} 33. Rxg7 {[%emt 0:02:05]} Rxd5 {[%emt 0:00:12]} 34. Rexg6+ {[%emt 0:03:55][%mdl 4096] Endgame KRR-KRR} Kf4 $1 {[%emt 0:00:56]} 35. Rf7+ {[%emt 0:01:46]} Ke4 {[%emt 0:01:03] aiming for ...d3.} 36. Re7+ {[%emt 0:01:18] [#]} (36. Re6+ $15 Re5 37. Rxa6) 36... Re5 {[%emt 0:00:30]} (36... Kd3 $1 $17 {...a5 is the strong threat.} 37. Rf7 a5) 37. Rd7 {[%emt 0:03:02]} (37. Rxe5+ $1 $11 Kxe5 38. Kf1) 37... a5 $17 {[%emt 0:00:12]} 38. h4 {[%emt 0:01:21]} Ra2 {[%emt 0:00:17]} 39. Kh2 {[%emt 0:00:46]} (39. Rf6 {was called for.}) 39... Rxa4 $19 {[%emt 0:00:30]} 40. g4 {[%emt 0:00:10]} hxg4 {[%emt 0:00:52]} 41. Rxg4+ {[%emt 0:15:42]} Kf3 $2 {[%emt 0:15:20]} ({Better is} 41... Kd3 $19 {White must now prevent ...Rc4.} 42. Kg3 Re3+ 43. Kh2 Rc4) 42. Rdxd4 $11 {[%emt 0:01:51] The position is equal.} Rxd4 {[%emt 0:00:28]} 43. Rxd4 {[%emt 0:00:05] KR-KR} Re4 {[%emt 0:00:06]} 44. Rd3+ {[%emt 0:01:04]} Kg4 {[%emt 0:00:05]} 45. Kg2 {[%emt 0:00:29]} a4 {[%emt 0:01:05]} 46. Kf2 {[%emt 0:00:19]} Kxh4 {[%emt 0:00:07]} 47. Kf3 {[%emt 0:00:20]} Rb4 {[%emt 0:00:23]} 48. Ke3 {[%emt 0:00:15]} Kg5 {[%emt 0:00:29]} 49. Rd5+ {[%emt 0:01:08]} Kf6 {[%emt 0:00:05]} 50. Kd3 {[%emt 0:04:39] White used his chance.  Weighted Error Value: White=0.31/Black=0.29 (precise)} 1/2-1/2

[Event "FISCA IM Round Robin 2022"]
[Site "Cap Aurora"]
[Date "2022.06.26"]
[Round "6.2"]
[White "Buzbuchi, Ionut"]
[Black "Dev, Shah"]
[Result "0-1"]
[ECO "A34"]
[WhiteElo "2301"]
[BlackElo "2292"]
[Annotator "TA"]
[PlyCount "60"]
[EventDate "2022.06.22"]
[EventType "tourn"]
[EventCountry "ROU"]
[SourceTitle "playchess.com"]
[Source "ChessBase"]
[SourceQuality "1"]
[TimeControl "40/5400+30:900+30"]

{[%evp 14,60,14,0,0,8,15,23,10,16,10,9,1,17,4,-22,-32,-22,-26,-120,-133,-117,-118,-185,-172,-247,-247,-244,-239,-254,-246,-215,-127,-352,-179,-267,-268,-264,-244,-256,-250,-313,-286,-498,-499,-618,-613,-968,-941]} 1. Nf3 {[%emt 0:00:03] Marin,M} Nf6 {[%emt 0:01:23]} 2. g3 {[%emt 0:00:05]} c5 {[%emt 0:00:04]} 3. c4 {[%emt 0:00:23]} Nc6 {[%emt 0:00:07]} 4. Bg2 {[%emt 0:00:10]} d5 {[%emt 0:00:04]} 5. cxd5 {[%emt 0:00:05]} Nxd5 {[%emt 0:00:07]} 6. Nc3 {[%emt 0:00:04]} Nc7 {[%emt 0:00:09]} 7. O-O {[%emt 0:00:12]} e5 {[%emt 0:00:07]} 8. a3 {[%emt 0:00:56][%cal Ob2b4,Ba2a3,Ba3b4][%mdl 32]} Rb8 {[%emt 0:02:20] A34: Symmetrical English: 2 Nc3, lines with ...d5.} 9. Rb1 {[%emt 0:00:34][%cal Ob2b4]} Be7 {[%emt 0:07:18]} 10. b4 {[%emt 0:18:35]} cxb4 {[%emt 0:00:29] White has an edge.} 11. axb4 {[%emt 0:00:05] With the idea b5.} b5 {[%emt 0:00:20]} 12. d3 {[%emt 0:01:09]} O-O {[%emt 0:04:26]} 13. Be3 {[%emt 0:01:00]} Bb7 {[%emt 0:02:51] [#]} (13... Bg4 {seems wilder.} 14. Qb3 Nd4 15. Qa2 Bxf3 16. exf3 Rc8) 14. Ne4 $146 {[%emt 0:01:48]} ({Predecessor:} 14. Qd2 Re8 15. Ne4 Na6 16. Rfc1 Ba8 17. Nc5 Nxc5 18. Bxc5 e4 19. dxe4 Bxc5 20. Rxc5 Rxe4 {½-½ (38) Svidler,P (2753)-Karjakin,S (2771) Stavanger 2014 CBM 161 [Marin,M]}) 14... Nd5 {[%emt 0:07:51]} 15. Bc5 {[%emt 0:11:51]} Ndxb4 {[%emt 0:03:56]} 16. Bxb4 {[%emt 0:07:14]} (16. Nxe5 $1 $11 a5 17. Nxc6 Bxc6 18. Qc1) 16... Nxb4 $17 {[%emt 0:01:58]} 17. Nxe5 {[%emt 0:00:17]} a5 {[%emt 0:02:07]} 18. Qd2 {[%emt 0:03:15]} (18. Qb3 $17) 18... f6 $19 {[%emt 0:05:08]} 19. Rxb4 {[%emt 0:04:47]} (19. Nf3 {was worth a try.}) 19... Bxb4 {[%emt 0:00:50]} 20. Qa2+ {[%emt 0:00:04] [#]} Kh8 $1 {[%emt 0:00:12]} 21. Nf7+ {[%emt 0:00:25] [#]} Rxf7 $1 {[%emt 0:00:20][%mdl 512]} 22. Qxf7 {[%emt 0:00:05]} Be7 {[%emt 0:00:59] A strong pair of Bishops.} ({Black should try} 22... Qd5 $19 23. Qxd5 Bxd5) 23. h4 $2 {[%emt 0:06:30] Now White is beyond hope.} (23. Nc3 $17 {was called for.}) 23... b4 {[%emt 0:01:22]} (23... Bd5 $142 24. Ng5 Bxg2) 24. Nd2 {[%emt 0:05:34]} (24. Rb1 $142) 24... Bxg2 {[%emt 0:11:23]} 25. Kxg2 {[%emt 0:00:06]} a4 {[%emt 0:00:04][%cal Ba5a4,Ba4a3][%mdl 32] aiming for ...b3.} 26. Ra1 {[%emt 0:03:38]} Qd7 {[%emt 0:01:35] Threatens to win with ...b3.} 27. Qc4 {[%emt 0:08:07]} Bf8 {[%emt 0:10:22]} 28. Qa6 $2 {[%emt 0:07:33]} (28. Qa2 Qc6+ 29. Kh2) 28... a3 {[%emt 0:03:00] Black is clearly winning.} 29. Qc4 {[%emt 0:16:24]} b3 {[%emt 0:00:58][%cal Bb4b3,Bb3b2][%mdl 32]} 30. e4 {[%emt 0:03:18]} b2 {[%emt 0:33:40] Weighted Error Value: White=0.67/Black=0.12 (very precise)} 0-1

[Event "FISCA IM Round Robin 2022"]
[Site "Cap Aurora"]
[Date "2022.06.26"]
[Round "6.3"]
[White "Manolache, Marius"]
[Black "Cosman, Andreea-Marioara"]
[Result "1-0"]
[ECO "D03"]
[WhiteElo "2481"]
[BlackElo "2120"]
[Annotator "TA"]
[PlyCount "57"]
[EventDate "2022.06.22"]
[EventType "tourn"]
[EventCountry "ROU"]
[SourceTitle "playchess.com"]
[Source "ChessBase"]
[SourceQuality "1"]
[TimeControl "40/5400+30:900+30"]

{[%evp 12,57,0,-3,9,7,10,6,22,-6,0,-20,15,-27,-14,-39,-17,-15,37,17,17,17,23,0,25,25,97,20,127,125,276,279,364,379,352,253,320,319,29990,29991,29991,29992,29992,-71,29993,29994,29994,29995]} 1. d4 {[%emt 0:00:09]} Nf6 {[%emt 0:00:06]} 2. Bg5 {[%emt 0:01:19]} e6 {[%emt 0:07:50]} 3. Nd2 {[%emt 0:00:39]} d5 {[%emt 0:01:08]} 4. e3 {[%emt 0:00:26]} Be7 {[%emt 0:01:10]} 5. Bd3 {[%emt 0:01:11]} b6 {[%emt 0:01:08]} 6. c3 {[%emt 0:02:25]} O-O {[%emt 0:03:58]} 7. Ngf3 {[%emt 0:03:49]} Ba6 {[%emt 0:04:51] D03: 1 d4 d5 2 Nf3 Nf6 3 Bg5, including Torre Attack with early ...d5.} 8. Bxa6 {[%emt 0:10:51]} Nxa6 {[%emt 0:00:08]} 9. Qe2 {[%emt 0:04:03]} Nb8 {[%emt 0:05:36] The position is equal.} 10. h4 {[%emt 0:04:01] [#]} Nbd7 $146 {[%emt 0:12:11]} ({Predecessor:} 10... c5 11. Bxf6 Bxf6 12. g4 Nc6 13. g5 Be7 14. Ne5 Nxe5 15. dxe5 d4 16. f4 dxc3 17. bxc3 {1-0 (32) Indjic,A (2607)-Sammed Jaykumar,S (2412) Chess.com INT 2021}) 11. h5 {[%emt 0:05:01]} Ne4 {[%emt 0:06:28]} (11... h6 $5 {[%cal Rh6g5]} 12. Bf4 Qb8 $11) 12. Bh4 {[%emt 0:16:00]} f5 {[%emt 0:05:12]} 13. Qb5 {[%emt 0:06:17]} Nxd2 {[%emt 0:06:07]} 14. Kxd2 {[%emt 0:00:06]} Nf6 {[%emt 0:07:52]} ({Better is} 14... Bxh4 $11 15. Rxh4 c5) 15. Bxf6 {[%emt 0:02:01]} Bxf6 {[%emt 0:00:15]} 16. Qc6 {[%emt 0:00:28]} Qe7 {[%emt 0:03:49]} 17. g3 {[%emt 0:03:05]} a5 {[%emt 0:03:38]} 18. Ne1 {[%emt 0:08:59]} e5 {[%emt 0:08:35]} (18... Rab8 $11) 19. Nd3 {[%emt 0:10:50]} (19. Qxd5+ $16 Kh8 20. Qc6) 19... exd4 {[%emt 0:04:06]} (19... Rfd8 $11 {keeps the balance.}) 20. exd4 $16 {[%emt 0:02:23]} ({Of course not} 20. Qxd5+ $6 Kh8 21. exd4 (21. cxd4 Rad8 $11) 21... Rad8 $14) 20... Qe4 $2 {[%emt 0:01:54]} (20... Rad8 $16 {was necessary.}) 21. Rae1 $18 {[%emt 0:01:08]} Qf3 {[%emt 0:01:10]} 22. Kc2 {[%emt 0:02:58] Active counter play!} ({Weaker is} 22. Qxc7 Rae8 $16) 22... Rad8 {[%emt 0:03:43]} 23. Qe6+ {[%emt 0:00:19]} ({Not} 23. Qxc7 Rde8 $16) 23... Kh8 {[%emt 0:00:31]} 24. Nf4 {[%emt 0:02:18][%cal Of4g6] White wants to mate with Ng6+!} Bg5 $2 {[%emt 0:03:00] [#]} (24... Qxf2+ $18 25. Kb1 Bg5) 25. Ng6+ $1 {[%emt 0:00:25][%mdl 512]} hxg6 {[%emt 0:00:05]} 26. hxg6+ {[%emt 0:00:03]} Bh6 {[%emt 0:00:07] [#]} 27. Rxh6+ $1 {[%emt 0:00:24][%mdl 512]} gxh6 {[%emt 0:00:06]} 28. Qe7 {[%emt 0:00:08][%csl Gg6][%cal Re7h7]} Qxf2+ {[%emt 0:00:04] [#]} 29. Kb3 $1 {[%emt 0:00:12] Weighted Error Value: White=0.15 (very precise) /Black=0.62} 1-0

[Event "FISCA IM Round Robin 2022"]
[Site "Cap Aurora"]
[Date "2022.06.26"]
[Round "6.4"]
[White "Ciolacu, Alessia-Mihaela"]
[Black "Antonica, Dragos-Andrei"]
[Result "0-1"]
[ECO "E73"]
[WhiteElo "2198"]
[BlackElo "2355"]
[Annotator "TA"]
[PlyCount "66"]
[EventDate "2022.06.22"]
[EventType "tourn"]
[EventCountry "ROU"]
[SourceTitle "playchess.com"]
[Source "ChessBase"]
[SourceQuality "1"]
[TimeControl "40/5400+30:900+30"]

{[%evp 18,66,52,64,61,66,59,62,64,60,74,58,76,66,76,73,77,19,70,72,72,67,106,59,96,98,148,0,0,0,0,-362,-341,-313,-241,-228,-235,-234,-230,-329,-304,-305,-297,-718,-722,-631,-690,-790,-783,-1109,-1086]} 1. d4 {[%emt 0:00:34]} Nf6 {[%emt 0:00:38]} 2. c4 {[%emt 0:00:11]} g6 {[%emt 0:00:50]} 3. Nc3 {[%emt 0:00:14]} Bg7 {[%emt 0:00:04]} 4. e4 {[%emt 0:00:07]} d6 {[%emt 0:00:24]} 5. Be2 {[%emt 0:00:20]} O-O {[%emt 0:01:26]} 6. Bg5 {[%emt 0:00:24]} h6 {[%emt 0:02:58]} 7. Be3 {[%emt 0:01:23]} e5 {[%emt 0:03:19]} 8. d5 {[%emt 0:01:03]} Na6 {[%emt 0:01:26]} 9. g4 {[%emt 0:03:25]} Nc5 {[%emt 0:03:50]} 10. f3 $1 {[%emt 0:02:27]} h5 {[%emt 0:01:13] E73: King's Indian: Averbakh Variation without 6...c5.} 11. g5 {[%emt 0:00:25]} Nh7 {[%emt 0:00:52]} 12. h4 {[%emt 0:00:49] 12.Qd2 deserves study.} f6 {[%emt 0:02:51] White is slightly better.} 13. gxf6 {[%emt 0:00:45]} Bxf6 {[%emt 0:01:11]} 14. Bf2 {[%emt 0:00:07]} Be7 {[%emt 0:02:13]} 15. Kd2 {[%emt 0:00:24]} Rf4 {[%emt 0:07:29]} 16. Qe1 $1 {[%emt 0:00:09]} a5 {[%emt 0:03:05]} 17. b3 {[%emt 0:12:53]} (17. Kc2 $16) 17... c6 {[%emt 0:02:35]} (17... Bd7 $11) 18. Kc2 $14 {[%emt 0:02:18]} Bd7 {[%emt 0:10:13]} 19. Rd1 {[%emt 0:08:22]} Na6 {[%emt 0:14:07][%cal Oa5a4]} 20. Kb2 {[%emt 0:04:56] [#]} (20. Nh3 $16 Rf6 21. Kb2) 20... c5 $146 {[%emt 0:11:17][%cal Oa5a4]} ({Predecessor:} 20... Rb8 21. Nh3 Rxh4 22. Bxh4 Bxh4 23. Qg1 Qf6 24. dxc6 Bxc6 25. Qb6 Nc5 26. Nd5 Qg7 27. Qxa5 Ne6 {½-½ (53) Ozturk Orenli,K (2262)-Nitin,S (2428) Graz 2017}) 21. a4 {[%emt 0:07:30]} Qf8 {[%emt 0:03:05]} (21... Nf8 $142) 22. Nh3 {[%emt 0:15:22]} (22. Be3 $16) 22... Rxf3 $11 {[%emt 0:10:36]} 23. Bxf3 {[%emt 0:02:32]} Qxf3 {[%emt 0:00:13]} 24. Qe2 $2 {[%emt 0:18:23][%mdl 8192] [#]} (24. Ng5 $1 $11 {and White stays safe.} Nxg5 25. hxg5) 24... Rf8 $1 $19 {[%emt 0:02:39]} 25. Rdg1 {[%emt 0:11:09] Black must now prevent Qxf3.} Qxe2+ {[%emt 0:05:45]} 26. Nxe2 {[%emt 0:00:02]} Bxh3 {[%emt 0:00:12]} 27. Rxg6+ {[%emt 0:04:32] [#]} Kf7 $1 {[%emt 0:01:51]} 28. Rgg1 {[%emt 0:03:44]} (28. Rh6 $142 Bg2 29. Rg1 (29. Rxh7+ $2 Ke8 $19) 29... Bxe4 30. Be3) 28... Bg4 {[%emt 0:01:06]} 29. Ng3 {[%emt 0:00:00]} Nb4 {[%emt 0:01:25] Threatens to win with ...Nd3+.} 30. Kc3 {[%emt 0:00:00] Against Nd3} (30. Rf1 Kg7 31. Be3) 30... Ke8 {[%emt 0:00:39] Black is clearly winning.} 31. Be3 {[%emt 0:00:00]} Rf3 {[%emt 0:00:24]} 32. Kd2 {[%emt 0:00:00]} Nf6 {[%emt 0:00:20][%cal Of3g3] ...Rxg3! is the strong threat.} 33. Rh2 {[%emt 0:01:54] [#]} Rxg3 $1 {[%emt 0:00:21][%mdl 512] Weighted Error Value: White=0.56/Black=0.12 (very precise)} 0-1

[Event "FISCA IM Round Robin 2022"]
[Site "Cap Aurora"]
[Date "2022.06.26"]
[Round "6.5"]
[White "Voiteanu, Gabriel"]
[Black "Sanz Wawer, Daniel"]
[Result "1-0"]
[ECO "E15"]
[WhiteElo "2189"]
[BlackElo "2363"]
[Annotator "TA"]
[PlyCount "104"]
[EventDate "2022.06.22"]
[EventType "tourn"]
[EventCountry "ROU"]
[SourceTitle "playchess.com"]
[Source "ChessBase"]
[SourceQuality "1"]
[TimeControl "40/5400+30:900+30"]

{[%evp 9,104,7,-6,0,0,0,35,21,42,21,33,35,41,17,25,-3,29,31,39,35,59,60,67,57,81,92,114,103,117,114,120,116,154,75,170,171,222,212,219,231,233,231,201,60,81,68,171,169,157,136,193,175,268,280,269,279,267,278,269,200,258,191,597,529,597,552,605,581,718,706,883,831,29973,29973,6311,5281,29985,2662,29984,29985,29985,29986,29986,29987,29987,29988,29988,29989,29992,29990,29990,29991,29991,29992,29992,29993,29993]} 1. d4 {[%emt 0:05:16]} Nf6 {[%emt 0:00:10]} 2. c4 {[%emt 0:00:12]} e6 {[%emt 0:00:04]} 3. Nf3 {[%emt 0:00:05]} b6 {[%emt 0:00:05]} 4. g3 {[%emt 0:00:14]} Ba6 {[%emt 0:00:05]} 5. Qc2 {[%emt 0:01:22]} c5 {[%emt 0:00:33]} 6. d5 {[%emt 0:00:57] Inhibits Nc6. E15: Queen's Indian: 4 g3 sidelines, 4 g3 Ba6 and 4 g3 Bb7 early deviations.} exd5 {[%emt 0:01:06]} 7. cxd5 {[%emt 0:00:06]} g6 {[%emt 0:04:17]} 8. e4 {[%emt 0:04:21] White is slightly better.} Bxf1 {[%emt 0:01:53]} 9. Kxf1 {[%emt 0:00:03][%cal Od5d6] Black should prevent d6!} Bg7 {[%emt 0:04:35]} 10. Nc3 {[%emt 0:16:51]} d6 {[%emt 0:00:41]} 11. Nd2 {[%emt 0:02:52]} O-O {[%emt 0:02:31]} 12. Kg2 {[%emt 0:01:45]} a6 {[%emt 0:01:09]} 13. a4 {[%emt 0:00:09] [#]} Nbd7 $146 {[%emt 0:02:11]} ({Predecessor:} 13... Nfd7 14. Nc4 Ne5 15. Ne3 Qc7 16. f4 Ned7 17. h4 h5 18. e5 dxe5 19. f5 e4 20. Nxe4 {½-½ (41) Paciorkowski,L (2262)-Arjun,V (2296) Charlotte 2021}) 14. Nc4 {[%emt 0:16:38]} Qc7 {[%emt 0:00:40]} 15. Bf4 {[%emt 0:02:28]} Ne8 {[%emt 0:00:05]} 16. h4 {[%emt 0:02:53][%cal Bh2h4,Bh4h5,Bh5h6][%mdl 32]} Rb8 {[%emt 0:04:54]} 17. h5 {[%emt 0:02:17]} b5 {[%emt 0:10:06]} 18. axb5 {[%emt 0:04:03]} axb5 {[%emt 0:00:06]} 19. Na5 $36 {[%emt 0:00:45][%mdl 2048] White is on the roll. White is much more active. The black rooks are badly placed.} b4 {[%emt 0:15:07]} 20. Ne2 {[%emt 0:01:59]} b3 {[%emt 0:04:39]} 21. Nxb3 {[%emt 0:03:44]} ({White should try} 21. Qd2 $1) 21... Nef6 {[%emt 0:01:29]} (21... f5 $16) 22. h6 $18 {[%emt 0:06:24]} Bh8 {[%emt 0:00:06][%cal Of6e4]} 23. Na5 {[%emt 0:00:33] Threatens to win with Nc6.} Rfe8 {[%emt 0:07:12]} 24. Nc6 {[%emt 0:01:37]} Rb7 {[%emt 0:01:20] [#]} 25. Nc3 {[%emt 0:01:31]} Nb8 {[%emt 0:03:45]} 26. Nxb8 {[%emt 0:02:54]} ({White should play} 26. Na5 $18 Rb4 27. f3) 26... Qxb8 {[%emt 0:04:27]} 27. Ra2 {[%emt 0:01:21]} Rb4 {[%emt 0:00:57] [#]} (27... Nh5 $14) 28. Rha1 $1 {[%emt 0:02:19][%cal Oa2a8] Black must now prevent Ra8!} Nh5 {[%emt 0:04:47]} (28... Nxe4 $2 29. Ra8 Qxa8 30. Rxa8 Rxa8 31. Nxe4 $18) 29. Be3 {[%emt 0:07:16]} Nf6 {[%emt 0:00:04]} (29... Be5 $16 {is a better defense.} 30. Bd2 Nf6) 30. Ra8 {[%emt 0:06:36]} ({But not} 30. f3 Nh5 $16) 30... Qxa8 {[%emt 0:01:20]} (30... Qb7 $142 31. Rxe8+ Nxe8) 31. Rxa8 {[%emt 0:00:01]} Rxa8 {[%emt 0:00:07]} 32. e5 {[%emt 0:00:24]} Ng4 {[%emt 0:11:34]} 33. exd6 {[%emt 0:00:06]} Nxe3+ {[%emt 0:00:03]} 34. fxe3 {[%emt 0:00:03][%cal Bf2e3,Be3e4][%mdl 32] Strongly threatening d7.} Rd8 {[%emt 0:01:55]} 35. Nd1 {[%emt 0:00:13]} Rb6 $2 {[%emt 0:07:30]} (35... Be5 {is tougher.} 36. d7 (36. Qxc5 Bxd6 37. Qa5 Rdb8 $16) 36... Rxd7) 36. Qxc5 {[%emt 0:00:17]} Rbxd6 {[%emt 0:00:05]} 37. e4 {[%emt 0:01:46]} R6d7 {[%emt 0:04:18]} 38. b4 {[%emt 0:01:29]} Be5 {[%emt 0:00:47]} 39. Ne3 {[%emt 0:00:41]} Rc7 {[%emt 0:00:53]} 40. Qb6 {[%emt 0:00:24] Nc4 would kill now.} Ra8 {[%emt 0:01:13]} 41. Ng4 {[%emt 0:16:25]} Rc2+ {[%emt 0:15:14]} 42. Kh3 {[%emt 0:00:10]} Rb8 {[%emt 0:01:24]} 43. Nf6+ {[%emt 0:01:09]} (43. Qa7 $142 Rf8 44. Nxe5 Rc1 45. Nd7 Rd8 46. Nf6+ Kf8 47. Nxh7+ Ke8 48. Ng5) 43... Kh8 {[%emt 0:00:01]} 44. Qa7 {[%emt 0:00:38] White mates.} Rc3 {[%emt 0:01:23]} 45. Qxf7 {[%emt 0:01:58][%csl Gf6][%cal Rf7h7]} Rxg3+ {[%emt 0:00:03]} 46. Kh4 {[%emt 0:00:25][%csl Gf6][%cal Rf7h7]} g5+ {[%emt 0:00:03]} 47. Kh5 {[%emt 0:00:02][%csl Gf6][%cal Rf7h7]} Rh3+ {[%emt 0:00:29]} 48. Kxg5 {[%emt 0:00:47][%csl Gf6][%cal Rf7h7]} Rg3+ {[%emt 0:01:21]} 49. Kf5 {[%emt 0:01:12][%csl Gf6][%cal Rf7h7]} Bxf6 {[%emt 0:00:31]} 50. Qxf6+ {[%emt 0:00:03]} Kg8 {[%emt 0:00:04]} 51. Qe6+ {[%emt 0:00:05]} Kf8 {[%emt 0:00:14]} 52. Qd6+ {[%emt 0:00:07]} Ke8 {[%emt 0:01:54] Weighted Error Value: White=0.15 (very precise) /Black=0.71} 1-0